bitfinex/quotes_SOLUSD_20241010
["timestamp","ask_amount","ask_price","bid_price","bid_amount"]
[1728522041387,0.9,138.61,138.54,15.1069]
[1728522041594,7.2171,138.56,138.54,15.1069]
[1728522041797,7.2167,138.57,138.54,15.1069]
[1728522042997,7.2167,138.57,138.55,1.44328896]
[1728522043904,7.2167,138.57,138.54,15.1069]
[1728522044404,7.216,138.58,138.55,1.44325633]
[1728522045009,7.216,138.58,138.54,15.1069]
[1728522045988,7.216,138.58,138.55,1.44320836]
[1728522046306,7.2151,138.6,138.56,23.776884]
[1728522047389,7.2151,138.6,138.57,1.44299959]
[1728522051237,7.2151,138.6,138.56,30.993884]
[1728522051799,7.2151,138.6,138.57,1.44291886]
[1728522052013,7.2151,138.6,138.56,30.993884]
[1728522052706,7.2151,138.6,138.57,1.44293603]
[1728522053098,7.2151,138.6,138.56,30.993884]
[1728522054605,0.9,138.64,138.56,23.776884]
[1728522054809,18.0318,138.65,138.59,23.776884]
[1728522055612,7.2141,138.62,138.59,23.776884]
[1728522055815,7.2141,138.62,138.57,31.118774]
[1728522056201,7.2147,138.61,138.57,31.118774]
[1728522056400,7.2147,138.61,138.57,23.776884]
[1728522056626,7.2157,138.59,138.55,43.902374]
[1728522056803,7.2157,138.59,138.55,113.902374]
[1728522057001,7.2157,138.59,138.55,121.119874]
[1728522057612,6.7151,138.6,138.56,8.65995914]
[1728522058613,7.2146,138.61,138.57,23.776884]
[1728522058926,7.2146,138.61,138.58,1.44280409]
[1728522061617,0.9,138.62,138.55,38.16889]
[1728522061917,0.9,138.62,138.56,23.776884]
[1728522062111,7.215,138.6,138.57,1.44295008]
[1728522062315,0.9,138.66,138.58,23.776884]
[1728522062316,18.9305,138.66,138.58,23.776884]
[1728522062519,18.9305,138.66,138.59,1.44267417]
[1728522062822,7.2135,138.63,138.59,1.44267417]
[1728522063128,18.9305,138.66,138.6,30.991784]
[1728522063129,7.2129,138.64,138.6,30.991784]
[1728522063318,7.2129,138.64,138.61,1.44252036]
[1728522064611,18.0305,138.66,138.61,1.44252036]
[1728522064815,7.2135,138.63,138.6,23.776884]
[1728522065624,0.9,138.65,138.59,15.7139]
[1728522065820,7.2148,138.61,138.58,6.0889]
[1728522066426,18.0305,138.66,138.59,1.44275714]
[1728522066724,7.2134,138.63,138.6,23.776884]
[1728522066927,7.2134,138.63,138.61,1.44257399]
[1728522067314,7.2134,138.63,138.59,23.776884]
[1728522067611,7.2141,138.62,138.59,23.776884]
[1728522067807,7.2118,138.66,138.61,18.0356]
[1728522068000,8.6974,138.7,138.63,23.776884]
[1728522068207,36.0463,138.72,138.63,23.776884]
[1728522068208,7.211,138.68,138.64,8.65484094]
[1728522068404,0.9,138.71,138.66,7.2118]
[1728522068405,7.2094,138.71,138.66,7.2118]
[1728522068607,7.2088,138.72,138.68,23.776884]
[1728522068912,7.2098,138.7,138.66,7.2118]
[1728522069113,7.2098,138.7,138.66,8.65369511]
[1728522069321,0.9,138.74,138.66,8.65369511]
[1728522069322,7.2094,138.71,138.67,30.987984]
[1728522069527,7.2094,138.71,138.67,23.776884]
[1728522069827,7.2094,138.71,138.68,1.44180231]
[1728522070023,7.2088,138.72,138.68,1.44180231]
[1728522070813,7.2088,138.72,138.67,30.988084]
[1728522071128,7.2093,138.71,138.66,30.988584]
[1728522071714,7.2103,138.69,138.66,23.776884]
[1728522072034,7.2098,138.7,138.67,1.44192371]
[1728522072323,7.2098,138.7,138.68,23.776884]
[1728522072631,7.2098,138.7,138.66,30.988584]
[1728522072817,0.9,138.74,138.66,30.988584]
[1728522073016,0.9,138.74,138.68,23.776884]
[1728522073017,7.2092,138.71,138.68,23.776884]
[1728522073221,7.2092,138.71,138.69,1.44177074]
[1728522073523,7.2092,138.71,138.68,23.776884]
[1728522073709,7.2092,138.71,138.66,30.988584]
[1728522077613,0.9,138.74,138.66,23.776884]
[1728522078310,7.2097,138.71,138.67,1.4418544]
[1728522078515,7.2098,138.7,138.66,23.776884]
[1728522081036,7.2104,138.69,138.66,23.776884]
[1728522081215,7.2098,138.7,138.66,23.776884]
[1728522082936,7.2098,138.7,138.66,93.776884]
[1728522083315,7.2098,138.7,138.68,23.776884]
[1728522084135,7.2098,138.7,138.69,1.4418057]
[1728522085328,0.9,138.74,138.69,1.4418057]
[1728522085535,7.2093,138.71,138.69,1.4418057]
[1728522086031,7.2088,138.72,138.68,31.113074]
[1728522086335,7.2083,138.73,138.7,23.776884]
[1728522086637,7.2083,138.73,138.71,1.44149903]
[1728522086818,0.9,138.76,138.68,23.776884]
[1728522086819,7.2099,138.7,138.68,23.776884]
[1728522087521,7.2099,138.7,138.67,23.776884]
[1728522087916,7.2094,138.71,138.67,23.776884]
[1728522091628,0.9,138.73,138.66,23.776884]
[1728522091820,7.2107,138.69,138.66,23.776884]
[1728522092422,0.9,138.73,138.66,23.776884]
[1728522092630,7.2114,138.67,138.63,13.382]
[1728522093029,7.2119,138.66,138.63,6.1687]
[1728522093236,7.2119,138.66,138.62,93.6425]
[1728522094034,0.9,138.71,138.62,93.6425]
[1728522094340,7.2118,138.66,138.62,23.6425]
[1728522094644,7.2129,138.64,138.6,76.6003]
[1728522095218,18.0275,138.68,138.6,76.6003]
[1728522095412,7.2125,138.65,138.6,83.815]
[1728522095819,7.2125,138.65,138.61,23.902374]
[1728522097753,0.9,138.67,138.59,15.7825]
[1728522098042,7.2145,138.61,138.59,15.7825]
[1728522098420,7.2145,138.61,138.56,83.5173]
[1728522099942,7.2145,138.61,138.57,7.34199]
[1728522100842,7.2145,138.61,138.58,23.776884]
[1728522102832,0.9,138.65,138.57,23.902374]
[1728522102833,7.2151,138.6,138.57,23.902374]
[1728522103925,7.2146,138.61,138.57,23.902374]
[1728522104140,7.2146,138.61,138.57,31.118874]
[1728522106052,0.9,138.65,138.58,1.44279943]
[1728522106229,7.2141,138.62,138.59,23.776884]
[1728522106428,7.2141,138.62,138.6,1.44272214]
[1728522106735,7.2141,138.62,138.57,31.118874]
[1728522107044,7.2134,138.63,138.59,23.776884]
[1728522107253,7.2134,138.63,138.6,1.4426174]
[1728522107745,7.7974,138.67,138.61,23.776884]
[1728522107945,0.9,138.68,138.62,1.44243079]
[1728522108124,7.2124,138.65,138.62,1.44243079]
[1728522108453,18.0266,138.69,138.63,23.776884]
[1728522108454,7.212,138.66,138.63,23.776884]
[1728522108638,7.212,138.66,138.64,1.44230564]
[1728522109146,7.2115,138.67,138.64,1.44230564]
[1728522110045,18.9227,138.72,138.65,23.776884]
[1728522110046,7.211,138.68,138.65,23.776884]
[1728522110629,18.9227,138.72,138.66,1.44204538]
[1728522110944,7.2099,138.7,138.66,1.44204538]
[1728522111940,7.2099,138.7,138.67,23.776884]
[1728522112137,7.2092,138.71,138.68,1.44183013]
[1728522114258,36.0359,138.76,138.68,1.44183013]
[1728522114259,18.0144,138.78,138.71,23.776884]
[1728522114552,7.206,138.78,138.73,30.984684]
[1728522114729,7.206,138.78,138.74,1.44106777]
[1728522114927,0.9,138.8,138.73,23.776884]
[1728522115251,7.2067,138.76,138.73,23.776884]
[1728522115444,7.206,138.78,138.73,23.776884]
[1728522115658,7.206,138.78,138.73,30.984784]
[1728522115844,7.2061,138.77,138.73,30.984784]
[1728522117432,7.2061,138.77,138.73,23.776884]
[1728522117633,7.2067,138.76,138.73,23.776884]
[1728522118955,7.2072,138.75,138.72,23.902374]
[1728522120031,7.2067,138.76,138.72,93.902374]
[1728522120734,7.2067,138.76,138.72,23.902374]
[1728522120956,7.2067,138.76,138.72,93.902374]
[1728522121457,7.2057,138.78,138.74,23.776884]
[1728522121668,7.2062,138.77,138.73,7.45908]
[1728522121831,18.9109,138.81,138.73,0.25098]
[1728522122035,7.2068,138.76,138.73,0.12549]
[1728522123059,7.2062,138.77,138.73,0.12549]
[1728522123250,7.2062,138.77,138.74,23.776884]
[1728522123448,7.2062,138.77,138.75,1.44113634]
[1728522124348,7.2062,138.77,138.73,0.12549]
[1728522124349,7.2062,138.77,138.74,23.776884]
[1728522124549,7.2062,138.77,138.75,1.4411327]
[1728522124942,18.9109,138.81,138.75,1.4411327]
[1728522125164,7.2062,138.77,138.75,1.4411327]
[1728522125361,7.2057,138.78,138.75,1.4411327]
[1728522126843,6.2152,138.82,138.76,23.776884]
[1728522127047,7.205,138.8,138.77,1.44085009]
[1728522127578,7.2052,138.79,138.76,23.776884]
[1728522127864,7.2052,138.79,138.75,23.776884]
[1728522128044,0.9,138.83,138.75,23.776884]
[1728522128242,7.2068,138.76,138.73,44.027864]
[1728522128437,18.13519,138.82,138.73,44.027864]
[1728522128438,0.9,138.81,138.73,44.027864]
[1728522128667,7.2062,138.77,138.73,51.235964]
[1728522128967,7.2062,138.77,138.74,1.4410769]
[1728522129151,7.2062,138.77,138.73,51.235964]
[1728522129469,7.2072,138.75,138.7,91.8264]
[1728522129644,0.9,138.81,138.7,21.8264]
[1728522129645,0.9,138.79,138.7,21.8264]
[1728522129846,7.2088,138.72,138.7,15.5467]
[1728522130976,7.2092,138.71,138.67,13.4909]
[1728522131165,7.2092,138.71,138.67,6.2797]
[1728522131874,7.2092,138.71,138.68,1.44179786]
[1728522132451,7.2092,138.71,138.67,13.4909]
[1728522132655,7.2092,138.71,138.69,1.44174534]
[1728522133073,7.2092,138.71,138.68,24.027864]
[1728522133659,7.2088,138.72,138.69,1.44173592]
[1728522133866,7.2088,138.72,138.68,24.027864]
[1728522136343,6.38999,138.74,138.66,16.4531]
[1728522136551,18.0224,138.72,138.66,16.4531]
[1728522136853,7.2113,138.67,138.62,93.3142]
[1728522137047,7.2119,138.66,138.62,86.1005]
[1728522137262,7.2119,138.66,138.62,93.3143]
[1728522137663,7.2119,138.66,138.62,16.1005]
[1728522138265,7.2136,138.63,138.58,98.8774]
[1728522140052,7.2129,138.64,138.6,70.0]
[1728522140262,7.2125,138.65,138.61,1.44245595]
[1728522140772,7.2125,138.65,138.61,23.776884]
[1728522141176,0.9,138.67,138.61,23.776884]
[1728522141354,0.9,138.67,138.6,23.776884]
[1728522141355,7.2129,138.64,138.6,23.776884]
[1728522142662,0.9,138.67,138.58,91.6618]
[1728522142959,7.2135,138.63,138.58,98.8776]
[1728522144063,7.2135,138.63,138.59,1.44263214]
[1728522144463,0.9,138.67,138.59,8.65793214]
[1728522144670,24.6926,138.68,138.59,8.65793214]
[1728522144671,7.2122,138.66,138.61,7.2142]
[1728522144971,7.2119,138.66,138.62,1.44242466]
[1728522145181,7.2119,138.66,138.62,8.65632466]
[1728522146178,7.2119,138.66,138.62,1.44242466]
[1728522147265,7.2114,138.67,138.63,23.776884]
[1728522147782,7.2114,138.67,138.64,1.44219068]
[1728522148763,7.2114,138.67,138.63,23.776884]
[1728522149372,7.2114,138.67,138.64,1.44220016]
[1728522149576,7.2104,138.69,138.65,25.21904011]
[1728522149761,7.7974,138.72,138.65,25.21904011]
[1728522149965,7.2099,138.7,138.65,32.43104011]
[1728522150271,7.2104,138.69,138.65,32.43104011]
[1728522150866,7.2099,138.7,138.65,32.43104011]
[1728522151670,0.9,138.73,138.65,30.988884]
[1728522151671,7.2103,138.69,138.65,30.988884]
[1728522152765,7.2103,138.69,138.66,1.44194995]
[1728522153090,7.2103,138.69,138.65,30.988884]
[1728522153469,7.2103,138.69,138.66,1.44197192]
[1728522154791,7.2099,138.7,138.67,23.776884]
[1728522154997,7.2099,138.7,138.68,1.44188083]
[1728522155171,18.02,138.74,138.69,1.44189474]
[1728522155489,7.7974,138.76,138.7,23.776884]
[1728522155490,7.2086,138.73,138.7,23.776884]
[1728522155711,18.9158,138.77,138.72,23.776884]
[1728522155712,0.9,138.77,138.72,23.776884]
[1728522156001,266.0143,138.79,138.72,23.776884]
[1728522156002,7.2077,138.74,138.72,23.776884]
[1728522156307,7.2077,138.74,138.7,16.1618]
[1728522156308,7.2077,138.74,138.71,23.776884]
[1728522156493,7.2077,138.74,138.72,1.44143321]
[1728522156789,7.2077,138.74,138.71,23.776884]
[1728522157487,7.2077,138.74,138.72,1.44145487]
[1728522159492,0.9,138.8,138.73,23.776884]
[1728522159683,7.2057,138.78,138.74,1.44106312]
[1728522159873,7.2055,138.79,138.74,8.64866312]
[1728522160274,26.7082,138.81,138.74,8.64866312]
[1728522160489,7.2058,138.78,138.74,8.64866312]
[1728522160687,7.2058,138.78,138.73,49.004984]
[1728522160988,7.2058,138.78,138.74,1.44109005]
[1728522161193,7.2061,138.77,138.73,49.004984]
[1728522161398,0.9,138.8,138.73,23.776884]
[1728522161791,7.2063,138.77,138.73,23.776884]
[1728522162185,0.9,138.8,138.73,23.776884]
[1728522162381,7.2067,138.76,138.73,23.776884]
[1728522165711,7.2067,138.76,138.74,1.44119735]
[1728522165990,7.2067,138.76,138.73,23.776884]
[1728522166482,7.2063,138.77,138.73,30.985084]
[1728522167874,7.2063,138.77,138.73,32.42625212]
[1728522168396,7.2063,138.77,138.73,30.985084]
[1728522170200,7.2063,138.77,138.74,1.44111819]
[1728522172079,0.9,138.8,138.75,23.776884]
[1728522172283,7.2053,138.79,138.76,1.44102001]
[1728522175384,7.2053,138.79,138.75,30.983984]
[1728522176490,7.2053,138.79,138.76,1.44092498]
[1728522176697,7.2053,138.79,138.75,30.983984]
[1728522179116,7.2053,138.79,138.76,1.44093603]
[1728522179485,7.2053,138.79,138.75,30.983984]
[1728522180504,7.2053,138.79,138.75,23.776884]
[1728522180809,7.2057,138.78,138.75,23.776884]
[1728522181381,7.2052,138.79,138.76,1.44097236]
[1728522182908,0.9,138.83,138.76,1.44097236]
[1728522182909,0.9,138.83,138.77,23.776884]
[1728522183108,7.2042,138.81,138.78,1.44070787]
[1728522184189,7.2037,138.82,138.79,23.776884]
[1728522184606,7.2037,138.82,138.78,23.776884]
[1728522188712,7.2026,138.84,138.79,32.42260251]
[1728522189119,7.2031,138.83,138.79,30.981984]
[1728522189992,7.2031,138.83,138.81,23.776884]
[1728522190216,7.2031,138.83,138.79,30.981984]
[1728522190788,7.2031,138.83,138.8,1.44051129]
[1728522191284,7.2026,138.84,138.81,23.776884]
[1728522191503,7.2026,138.84,138.8,23.776884]
[1728522191906,1.7256069,138.86,138.79,23.776884]
[1728522192206,7.204,138.81,138.78,23.776884]
[1728522192410,7.204,138.81,138.77,24.027864]
[1728522193290,7.2046,138.8,138.77,20.0]
[1728522194510,7.2046,138.8,138.78,23.776884]
[1728522197721,7.2046,138.8,138.79,1.44074928]
[1728522198216,7.2042,138.81,138.79,1.44074928]
[1728522199894,7.2042,138.81,138.78,23.776884]
[1728522200112,7.2042,138.81,138.79,1.44067167]
[1728522200318,7.2042,138.81,138.78,23.776884]
[1728522202499,7.2035,138.83,138.79,1.44068496]
[1728522202918,7.2036,138.82,138.79,1.44068496]
[1728522205105,0.8256069,138.86,138.8,23.776884]
[1728522205106,7.2026,138.84,138.8,23.776884]
[1728522205318,7.2026,138.84,138.81,1.44040029]
[1728522207522,0.8256069,138.86,138.82,23.776884]
[1728522207706,8.0275069,138.86,138.83,1.44015556]
[1728522208099,8.0275069,138.86,138.82,30.980284]
[1728522211402,0.8256069,138.86,138.82,23.776884]
[1728522211737,0.8256069,138.86,138.82,30.980384]
[1728522212025,8.0271069,138.86,138.82,32.42052357]
[1728522212328,8.0271069,138.86,138.82,30.980384]
[1728522213819,0.8256069,138.86,138.82,23.776884]
[1728522214121,7.2026,138.84,138.82,23.776884]
[1728522214331,7.2026,138.84,138.81,85.8055]
[1728522214819,0.8256069,138.86,138.81,15.8055]
[1728522215022,7.2035,138.82,138.79,70.0]
[1728522215223,1.7256069,138.86,138.78,33.6401]
[1728522215434,7.2036,138.82,138.78,33.6401]
[1728522215598,7.2041,138.81,138.78,15.6268]
[1728522216926,7.2041,138.81,138.79,23.776884]
[1728522217929,7.2037,138.82,138.79,25.21754239]
[1728522218228,7.2032,138.83,138.8,0.12549]
[1728522221427,7.2042,138.81,138.79,23.776884]
[1728522221731,7.2042,138.81,138.78,15.6268]
[1728522223008,7.2042,138.81,138.79,23.776884]
[1728522228439,7.2037,138.82,138.8,1.44061705]
[1728522229537,7.2031,138.83,138.8,1.44061705]
[1728522230039,7.2025,138.84,138.81,1.44047622]
[1728522235754,7.2025,138.84,138.82,23.776884]
[1728522236428,7.2025,138.84,138.83,1.44038222]
[1728522236828,7.2021,138.85,138.83,1.44038222]
[1728522237442,0.8256069,138.86,138.83,1.44038222]
[1728522237751,8.0272069,138.86,138.83,1.44038222]
[1728522238136,8.0272069,138.86,138.84,23.776884]
[1728522238875,8.0272069,138.86,138.83,23.776884]
[1728522239044,8.0272069,138.86,138.82,23.776884]
[1728522240357,0.8256069,138.86,138.82,23.776884]
[1728522241343,7.2021,138.85,138.83,1.44025889]
[1728522241849,7.2021,138.85,138.82,23.776884]
[1728522242061,7.2039,138.82,138.78,22.8323]
[1728522242235,7.205,138.8,138.79,5.38351894]
[1728522242553,7.205,138.8,138.77,76.0045]
[1728522246141,7.2056,138.78,138.76,23.776884]
[1728522246756,18.0081,138.83,138.76,95.2178517]
[1728522246933,7.2041,138.81,138.76,102.4241517]
[1728522247132,7.2041,138.81,138.77,7.2061]
[1728522247350,7.2041,138.81,138.79,23.776884]
[1728522247541,7.2036,138.82,138.8,1.44063369]
[1728522250669,7.2031,138.83,138.8,1.44063369]
[1728522251459,19.7298069,138.86,138.8,1.44063369]
[1728522251460,7.2026,138.84,138.81,23.776884]
[1728522251636,0.8256069,138.86,138.82,1.44040207]
[1728522251839,7.2023,138.85,138.82,1.44040207]
[1728522252240,7.2023,138.85,138.81,23.776884]
[1728522252554,7.2035,138.83,138.8,16.4701]
[1728522253944,7.2035,138.83,138.81,1.44051327]
[1728522254148,0.8256069,138.86,138.82,23.776884]
[1728522254464,7.2025,138.84,138.81,23.776884]
[1728522258668,7.2035,138.82,138.8,23.776884]
[1728522258859,1.7256069,138.86,138.78,70.0]
[1728522259064,18.0056,138.85,138.78,70.0]
[1728522259375,7.2035,138.82,138.78,77.2055]
[1728522260152,7.2035,138.82,138.79,23.776884]
[1728522262075,7.2035,138.82,138.8,1.44063409]
[1728522263376,18.9056,138.85,138.8,1.44063409]
[1728522263377,7.204,138.81,138.8,1.44063409]
[1728522263561,7.204,138.81,138.79,23.776884]
[1728522263876,7.204,138.81,138.79,25.21755649]
[1728522264084,18.9056,138.85,138.79,25.21755649]
[1728522264373,7.2037,138.82,138.79,25.21755649]
[1728522264761,7.2046,138.8,138.79,23.776884]
[1728522265082,7.2041,138.81,138.79,23.776884]
[1728522265454,7.2046,138.8,138.79,23.776884]
[1728522265766,7.2046,138.8,138.78,23.776884]
[1728522266550,7.2041,138.81,138.78,23.776884]
[1728522266764,7.2041,138.81,138.79,1.44065263]
[1728522267277,7.2041,138.81,138.78,93.776884]
[1728522267649,7.2041,138.81,138.79,5.38632145]
[1728522267855,7.2041,138.81,138.78,93.776884]
[1728522268562,19.7301069,138.86,138.8,23.776884]
[1728522268913,7.203,138.83,138.8,23.776884]
[1728522269060,7.2036,138.82,138.79,23.776884]
[1728522270781,7.2031,138.83,138.81,23.776884]
[1728522270986,7.2027,138.84,138.82,1.44041712]
[1728522271476,18.8301069,138.86,138.82,1.44041712]
[1728522271779,7.203,138.83,138.82,1.44041712]
[1728522271964,7.2026,138.84,138.82,1.44041712]
[1728522272381,7.202,138.85,138.83,23.776884]
[1728522272576,7.202,138.85,138.84,1.4402497]
[1728522272787,8.0272069,138.86,138.84,1.4402497]
[1728522272976,0.8256069,138.86,138.84,1.4402497]
[1728522273779,0.8256069,138.86,138.85,115.46801799]
[1728522274091,0.8256069,138.86,138.85,122.67001799]
[1728522274282,0.8256069,138.86,138.85,142.73619546]
[1728522274483,0.8256069,138.86,138.85,156.94114147]
[1728522274987,0.8256069,138.86,138.85,165.52991156]
[1728522275200,0.8256069,138.86,138.85,151.55103409]
[1728522276375,0.8256069,138.86,138.85,165.52991156]
[1728522277573,0.8256069,138.86,138.85,156.94114147]
[1728522280588,0.8256069,138.86,138.85,142.962264]
[1728522281592,0.8256069,138.86,138.85,156.94114147]
[1728522281800,7.1975,138.94,138.89,30.976384]
[1728522281989,7.1975,138.94,138.91,23.776884]
[1728522282300,7.1975,138.94,138.92,1.4394153]
[1728522282772,7.1978,138.93,138.92,1.4394153]
[1728522283093,7.1978,138.93,138.91,23.776884]
[1728522283280,7.1951,138.99,138.95,23.776884]
[1728522283598,7.1953,138.98,138.96,1.43894556]
[1728522285403,7.695281,138.98,138.95,23.776884]
[1728522288583,7.695281,138.98,138.96,1.43896981]
[1728522290481,7.695281,138.98,138.95,23.776884]
[1728522295214,7.1959,138.97,138.94,23.776884]
[1728522296489,0.499981,138.98,138.93,23.776884]
[1728522296688,7.1963,138.96,138.93,23.776884]
[1728522297101,7.1969,138.95,138.93,23.776884]
[1728522299098,7.1963,138.96,138.93,25.21607443]
[1728522299290,7.1963,138.96,138.93,23.776884]
[1728522300493,7.696281,138.96,138.94,1.43916507]
[1728522300697,7.696281,138.96,138.93,23.776884]
[1728522302107,7.1969,138.95,138.93,23.776884]
[1728522302311,7.1978,138.93,138.92,23.776884]
[1728522302517,7.1974,138.94,138.92,23.776884]
[1728522303632,0.499981,138.96,138.94,23.776884]
[1728522304006,7.696381,138.96,138.93,23.776884]
[1728522304203,7.696381,138.96,138.94,1.43913293]
[1728522304204,0.499981,138.96,138.94,1.43913293]
[1728522305716,0.499981,138.96,138.95,23.776884]
[1728522306005,0.499981,138.96,138.95,45.20354147]
[1728522306212,0.499981,138.96,138.95,65.20354147]
[1728522306508,0.499981,138.96,138.95,52.66332286]
[1728522306700,0.499981,138.96,138.95,51.224664]
[1728522307615,0.499981,138.96,138.95,66.456564]
[1728522309317,0.499981,138.96,138.95,72.572264]
[1728522309626,0.499981,138.96,138.95,74.01096199]
[1728522309805,0.499981,138.96,138.95,72.572264]
[1728522310208,0.499981,138.96,138.95,87.98984003]
[1728522310715,0.499981,138.96,138.95,86.55114147]
[1728522312613,0.499981,138.96,138.95,66.55114147]
[1728522312925,0.499981,138.96,138.95,86.55114147]
[1728522313314,0.499981,138.96,138.95,72.572264]
[1728522314620,0.499981,138.96,138.95,74.01097375]
[1728522315436,0.499981,138.96,138.95,87.98985122]
[1728522316528,0.499981,138.96,138.95,86.55114147]
[1728522317831,7.1916,139.05,138.99,70.0]
[1728522318136,7.1922,139.04,139.01,23.776884]
[1728522318307,7.1926,139.03,139.0,23.776884]
[1728522318712,7.1937,139.01,139.0,23.776884]
[1728522319323,18.8786,139.06,138.97,77.1957]
[1728522319324,18.8786,139.06,138.98,44.027864]
[1728522319523,7.1932,139.02,138.98,44.027864]
[1728522320032,7.1932,139.02,138.98,51.097474]
[1728522320532,7.1941,139.01,138.98,23.776884]
[1728522321331,7.1933,139.02,138.98,23.776884]
[1728522321515,7.1933,139.02,138.99,1.43857851]
[1728522321711,7.1933,139.02,138.98,23.776884]
[1728522324537,7.1933,139.02,138.99,1.43858246]
[1728522324835,7.1928,139.03,139.0,23.776884]
[1728522325338,7.1928,139.03,139.0,25.21530556]
[1728522325722,7.1928,139.03,139.0,23.776884]
[1728522327327,7.1923,139.04,139.02,23.776884]
[1728522327631,7.1923,139.04,139.0,23.776884]
[1728522327831,7.1923,139.04,139.02,23.776884]
[1728522328018,7.1923,139.04,139.03,1.43832943]
[1728522328214,7.1912,139.06,139.02,93.776884]
[1728522330720,7.1918,139.05,139.02,23.776884]
[1728522330921,0.9,139.08,139.01,23.776884]
[1728522330922,7.1926,139.03,139.01,23.776884]
[1728522331141,7.1922,139.04,139.01,23.776884]
[1728522332019,7.1917,139.05,139.03,23.776884]
[1728522336323,7.1921,139.04,139.01,23.776884]
[1728522336521,17.9784,139.06,139.01,23.776884]
[1728522336843,7.1927,139.03,139.01,23.776884]
[1728522337424,7.1923,139.04,139.01,23.776884]
[1728522342051,0.9,139.08,139.01,41.760484]
[1728522342259,0.9,139.08,139.02,1.43823489]
[1728522342260,7.1918,139.05,139.02,1.43823489]
[1728522342549,7.1918,139.05,139.01,41.760484]
[1728522343977,7.1922,139.04,139.01,41.760484]
[1728522344132,7.1922,139.04,139.01,23.776884]
[1728522344334,7.1929,139.03,139.01,23.776884]
[1728522345147,7.1922,139.04,139.01,23.776884]
[1728522345327,17.9771,139.07,139.02,70.25098]
[1728522345528,7.1918,139.05,139.03,23.776884]
[1728522348639,7.1922,139.04,139.02,70.0]
[1728522349853,7.3656413,139.09,139.03,23.776884]
[1728522350057,7.1921,139.04,139.03,23.776884]
[1728522351156,7.1917,139.05,139.03,23.776884]
[1728522352464,7.1917,139.05,139.03,25.21509326]
[1728522353038,7.1917,139.05,139.03,23.776884]
[1728522354666,7.1917,139.05,139.03,25.21510037]
[1728522355642,7.1917,139.05,139.03,23.776884]
[1728522355843,7.1921,139.04,139.02,70.0]
[1728522356946,7.1916,139.05,139.03,25.21515716]
[1728522358281,5.6916,139.05,139.03,25.21515716]
[1728522359869,7.1921,139.04,139.03,23.776884]
[1728522360342,7.1921,139.04,139.02,70.0]
[1728522361245,7.1921,139.04,139.03,1.43829947]
[1728522361448,18.8756,139.08,139.03,1.43829947]
[1728522361672,7.1917,139.05,139.03,1.43829947]
[1728522362945,7.1917,139.05,139.02,70.0]
[1728522363152,7.1917,139.05,139.03,23.776884]
[1728522363369,7.1917,139.05,139.03,25.21509349]
[1728522363669,7.1917,139.05,139.03,23.776884]
[1728522364275,0.8282413,139.09,139.05,23.776884]
[1728522364577,0.8282413,139.09,139.06,1.43801461]
[1728522364748,7.191,139.07,139.06,1.43801461]
[1728522365148,7.191,139.07,139.05,23.776884]
[1728522365387,7.1911,139.06,139.05,23.776884]
[1728522366261,7.1908,139.07,139.04,23.776884]
[1728522366574,7.1908,139.07,139.03,23.776884]
[1728522367063,7.1908,139.07,139.05,23.776884]
[1728522367272,7.1908,139.07,139.06,1.43803302]
[1728522367575,7.1908,139.07,139.05,23.776884]
[1728522369159,7.1908,139.07,139.06,1.43802975]
[1728522369360,7.1908,139.07,139.03,23.776884]
[1728522371355,7.1916,139.06,139.03,23.776884]
[1728522372373,7.1916,139.06,139.04,1.43815246]
[1728522373070,7.1916,139.06,139.03,23.776884]
[1728522374357,7.1905,139.08,139.04,70.25098]